lending/lending_fUSD_20240128
["ID","MTS","AMOUNT","RATE_DAILY","PERIOD"]
[312915288,1706459468000,-151.97424573,0.00051,19]
[312915289,1706459468009,-151.97424573,0.00051,18]
[312915290,1706459468019,-151.97424573,0.00051,20]
[312915291,1706459468029,-151.97424573,0.00051,18]
[312915292,1706459468039,-300.0,0.00051,29]
[312915293,1706459468049,-150.0,0.00051,29]
[312915294,1706459468058,-500.0,0.00051062,5]
[312915295,1706459468068,-516.46328289,0.0005112,14]
[312915296,1706459468077,-1000.0,0.00051233,90]
[312915297,1706459468087,-500.0,0.00051233,21]
[312915298,1706459468096,-500.0,0.00051233,30]
[312915299,1706459468105,-864.43443322,0.000513,2]
[312915300,1706459468114,-238.5,0.00051308,120]
[312915301,1706459468123,-1000.0,0.00051393,30]
[312915302,1706459468133,-1000.0,0.00051393,30]
[312915303,1706459468142,-1000.0,0.00051393,30]
[312915304,1706459468151,-1000.0,0.00051393,30]
[312915305,1706459468162,-2508.26531604,0.000514,5]
[312915306,1706459468172,-153.60830703,0.00051487,30]
[312915307,1706459468182,-200.0,0.000515,29]
[312915308,1706459468192,-500.0,0.00051507,30]
[312915309,1706459468202,-318.72122111,0.00051535,120]
[312915310,1706459468212,-205.0,0.0005166,30]
[312915311,1706459468222,-2100.000099,0.00051777,25]
[312915312,1706459468231,-1000.0,0.00051781,90]
[312915313,1706459468241,-512.77300738,0.00051781,21]
[312915314,1706459468250,-500.0,0.00051781,30]
[312915315,1706459468259,-1000.0,0.000518,120]
[312915316,1706459468269,-1000.0,0.000518,120]
[312915317,1706459468278,-156.0,0.000518,60]
[312915318,1706459468289,-281.99536857,0.000519,120]
[312915319,1706459468299,-156.52136997,0.000519,120]
[312915320,1706459468309,-173.49445577,0.0005192,5]
[312915321,1706459468319,-6861.385298,0.00051962,2]
[312915322,1706459468328,-152.0,0.0005198,9]
[312915323,1706459468338,-153.60830703,0.00051987,30]
[312915324,1706459468347,-230.0,0.0005199,2]
[312915325,1706459468357,-245.0,0.0005199,2]
[312915326,1706459468366,-1000.0,0.00051999,120]
[312915327,1706459468376,-1033.14,0.00052,2]
[312915328,1706459468386,-500.0,0.00052,20]
[312915329,1706459468395,-191.09366961,0.00052,7]
[312915330,1706459468405,-457.21257177,0.00052,30]
[312915331,1706459468414,-2043.98,0.00052,60]
[312915332,1706459468424,-10040.84030281,0.00052,5]
[312915333,1706459468433,-1000.0,0.00052,2]
[312915334,1706459468442,-1000.0,0.00052,2]
[312915335,1706459468452,-1000.0,0.00052,2]
[312915336,1706459468461,-1000.0,0.00052,2]
[312915337,1706459468470,-1093.0,0.00052,30]
[312915338,1706459468480,-600.0,0.00052,53]
[312915339,1706459468490,-200.0,0.00052,30]
[312915340,1706459468500,-1000.0,0.00052,120]
[312915341,1706459468510,-300.0,0.00052,30]
[312915342,1706459468519,-152.09,0.00052,120]
[312915343,1706459468529,-152.09,0.00052,120]
[312915344,1706459468538,-152.09,0.00052,120]
[312915345,1706459468549,-152.09,0.00052,120]
[312915346,1706459468558,-152.09,0.00052,120]
[312915347,1706459468568,-152.09,0.00052,120]
[312915348,1706459468577,-152.09,0.00052,120]
[312915349,1706459468587,-152.09,0.00052,120]
[312915350,1706459468596,-152.09,0.00052,120]
[312915351,1706459468606,-152.09,0.00052,120]
[312915352,1706459468616,-152.09,0.00052,120]
[312915353,1706459468628,-152.09,0.00052,120]
[312915354,1706459468639,-152.09,0.00052,120]
[312915355,1706459468650,-152.09,0.00052,120]
[312915356,1706459468660,-152.09,0.00052,120]
[312915357,1706459468671,-152.09,0.00052,120]
[312915358,1706459468682,-152.09,0.00052,120]
[312915359,1706459468692,-152.09,0.00052,120]
[312915360,1706459468704,-152.09,0.00052,120]
[312915361,1706459468715,-152.09,0.00052,120]
[312915362,1706459468725,-152.09,0.00052,120]
[312915363,1706459468734,-152.09,0.00052,120]
[312915364,1706459468744,-152.09,0.00052,120]
[312915365,1706459468753,-152.09,0.00052,120]
[312915366,1706459468764,-152.09,0.00052,120]
[312915367,1706459468777,-152.09,0.00052,120]
[312915368,1706459468787,-152.09,0.00052,120]
[312915369,1706459468797,-152.09,0.00052,120]
[312915370,1706459468813,-152.09,0.00052,120]
[312915371,1706459468822,-152.09,0.00052,120]
[312915372,1706459468833,-152.09,0.00052,120]
[312915373,1706459468842,-152.09,0.00052,120]
[312915374,1706459468852,-152.09,0.00052,120]
[312915375,1706459468862,-152.09,0.00052,120]
[312915376,1706459468872,-150.0,0.00052,30]
[312915377,1706459468882,-152.09,0.00052,120]
[312915378,1706459468892,-152.09,0.00052,120]
[312915379,1706459468901,-152.09,0.00052,120]
[312915380,1706459468912,-152.09,0.00052,120]
[312915381,1706459468921,-152.09,0.00052,120]
[312915382,1706459468931,-152.09,0.00052,120]
[312915383,1706459468940,-152.09,0.00052,120]
[312915384,1706459468950,-152.09,0.00052,120]
[312915385,1706459468960,-152.09,0.00052,120]
[312915386,1706459468969,-152.09,0.00052,120]
[312915387,1706459468979,-152.09,0.00052,120]
[312915388,1706459468989,-152.09,0.00052,120]
[312915389,1706459468998,-152.09,0.00052,120]
[312915390,1706459469008,-152.09,0.00052,120]
[312915391,1706459469017,-152.09,0.00052,120]
[312915392,1706459469027,-152.09,0.00052,120]
[312915393,1706459469036,-152.09,0.00052,120]
[312915394,1706459469046,-152.09,0.00052,120]
[312915395,1706459469058,-152.09,0.00052,120]
[312915396,1706459469068,-163.82500026,0.00052054,2]
[312915397,1706459469077,-667.79594234,0.00052054,60]
[312915398,1706459469087,-210.47085859,0.00052054,7]
[312915399,1706459469096,-2452.40796218,0.00052054,90]
[312915400,1706459469106,-500.0,0.00052054,30]
[312915401,1706459469115,-5000.0,0.00052054,45]
[312915402,1706459469124,-500.0,0.00052054,30]
[312915403,1706459469134,-500.0,0.00052054,2]
[312915404,1706459469144,-500.0,0.00052054,14]
[312915405,1706459469153,-510.37793822,0.00052054,31]
[312915406,1706459469163,-386.8410117,0.00052054,31]
[312915407,1706459469173,-500.0,0.00052054,31]
[312915408,1706459469182,-314.39348585,0.00052054,31]
[312915409,1706459469191,-413.92212772,0.00052054,30]
[312915410,1706459469202,-1000.0,0.00052054,2]
[312915411,1706459469212,-533.24645569,0.00052054,31]
[312915412,1706459469222,-500.0,0.00052054,10]
[312915413,1706459469231,-500.0,0.00052054,31]
[312915414,1706459469240,-500.0,0.00052054,31]
[312915415,1706459469250,-556.07752899,0.00052054,31]
[312915416,1706459469259,-500.0,0.00052054,31]
[312915417,1706459469269,-500.0,0.00052054,31]
[312915418,1706459469279,-500.0,0.00052054,31]
[312915419,1706459469289,-500.0,0.00052054,31]
[312915420,1706459469299,-500.0,0.00052054,31]
[312915421,1706459469309,-520.24830663,0.00052054,31]
[312915422,1706459469319,-500.0,0.00052054,31]
[312915423,1706459469329,-212.89461233,0.00052054,31]
[312915424,1706459469339,-500.0,0.00052054,31]
[312915425,1706459469348,-500.0,0.00052054,31]
[312915426,1706459469495,-541.16623051,0.00052054,31]
[312915427,1706459469506,-500.0,0.00052054,31]
[312915428,1706459469516,-500.0,0.00052054,31]
[312915429,1706459469526,-500.0,0.00052054,9]
[312915430,1706459469535,-543.44,0.00052054,31]
[312915431,1706459469545,-314.97507492,0.00052054,2]
[312915432,1706459469557,-500.0,0.00052054,31]
[312915433,1706459469567,-500.0,0.00052054,7]
[312915434,1706459469577,-500.0,0.00052054,31]
[312915435,1706459469587,-500.0,0.00052054,31]
[312915436,1706459469596,-500.0,0.00052054,31]
[312915437,1706459469606,-500.0,0.00052054,31]
[312915438,1706459469616,-500.0,0.00052054,14]
[312915439,1706459469625,-522.89273898,0.00052054,31]
[312915440,1706459469634,-500.0,0.00052054,31]
[312915441,1706459469644,-300.78311243,0.00052054,31]
[312915442,1706459469653,-500.0,0.00052054,31]
[312915443,1706459469663,-676.51,0.00052054,31]
[312915444,1706459469672,-517.16426671,0.00052054,31]
[312915445,1706459469682,-500.0,0.00052054,31]
[312915446,1706459469692,-500.0,0.00052054,31]
[312915447,1706459469703,-500.0,0.00052054,31]
[312915448,1706459469713,-607.64827333,0.00052054,31]
[312915449,1706459469723,-535.87328858,0.00052054,31]
[312915450,1706459469732,-500.0,0.00052054,31]
[312915451,1706459469742,-500.0,0.00052054,31]
[312915452,1706459469752,-500.0,0.00052054,31]
[312915453,1706459469764,-270.25016331,0.00052054,31]
[312915454,1706459469774,-500.0,0.00052054,31]
[312915455,1706459469784,-588.16,0.00052054,31]
[312915456,1706459469793,-500.0,0.00052054,31]
[312915457,1706459469804,-500.0,0.00052054,31]
[312915458,1706459469814,-1418.98,0.00052054,31]
[312915459,1706459469824,-1197.91,0.00052054,2]
[312915460,1706459469834,-452.20461791,0.00052054,7]
[312915461,1706459469844,-500.0,0.00052054,31]
[312915462,1706459469854,-500.0,0.00052054,31]
[312915463,1706459469864,-527.23938406,0.00052054,31]
[312915464,1706459469873,-500.0,0.00052054,31]
[312915465,1706459469882,-587.91724679,0.00052054,31]
[312915466,1706459469891,-500.0,0.00052054,31]
[312915467,1706459469900,-500.0,0.00052054,31]
[312915468,1706459469910,-500.0,0.00052054,31]
[312915469,1706459469919,-1195.75,0.00052054,31]
[312915470,1706459469929,-500.0,0.00052054,31]
[312915471,1706459469939,-500.0,0.00052054,31]
[312915472,1706459469948,-560.35925153,0.00052054,31]
[312915473,1706459469958,-500.0,0.00052054,31]
[312915474,1706459469967,-541.28,0.00052054,2]
[312915475,1706459469977,-500.0,0.00052054,31]
[312915476,1706459469986,-1000.0,0.00052054,31]
[312915477,1706459469995,-500.0,0.00052054,31]
[312915478,1706459470005,-500.0,0.00052054,31]
[312915479,1706459470014,-500.0,0.00052054,31]
[312915480,1706459470024,-585.47337074,0.00052054,31]
[312915481,1706459470034,-500.0,0.00052054,31]
[312915482,1706459470043,-500.0,0.00052054,31]
[312915483,1706459470053,-467.51010719,0.00052054,31]
[312915484,1706459470062,-500.0,0.00052054,31]
[312915485,1706459470071,-500.0,0.00052054,31]
[312915486,1706459470081,-500.0,0.00052054,31]
[312915487,1706459470091,-500.0,0.00052054,31]
[312915488,1706459470100,-500.0,0.00052054,31]
[312915489,1706459470110,-500.0,0.00052054,31]
[312915490,1706459470121,-1359.14,0.00052054,31]
[312915491,1706459470130,-500.0,0.00052054,31]
[312915492,1706459470139,-500.0,0.00052054,31]
[312915493,1706459470148,-500.0,0.00052054,31]
[312915494,1706459470158,-500.0,0.00052054,31]
[312915495,1706459470167,-519.82576618,0.00052054,31]
[312915496,1706459470177,-800.0,0.00052054,30]
[312915497,1706459470187,-532.28002368,0.00052054,31]
[312915498,1706459470197,-500.0,0.00052054,31]
[312915499,1706459470207,-502.26248035,0.00052054,31]
[312915500,1706459470216,-500.0,0.00052054,31]
[312915501,1706459470226,-521.94105795,0.00052054,7]
[312915502,1706459470235,-500.0,0.00052054,31]
[312915503,1706459470245,-418.165378,0.00052054,31]
[312915504,1706459470254,-525.49677049,0.00052054,31]
[312915505,1706459470263,-569.07911524,0.00052054,31]
[312915506,1706459470273,-500.0,0.00052054,31]
[312915507,1706459470282,-500.0,0.00052054,31]
[312915508,1706459470291,-521.91834218,0.00052054,31]
[312915509,1706459470302,-647.77480713,0.00052054,31]
[312915510,1706459470311,-500.0,0.00052054,31]
[312915511,1706459470321,-582.37113628,0.00052054,31]
[312915512,1706459470330,-500.0,0.00052054,31]
[312915513,1706459470339,-631.50900721,0.00052054,31]
[312915514,1706459470349,-500.0,0.00052054,31]
[312915515,1706459470358,-500.0,0.00052054,31]
[312915516,1706459470367,-500.0,0.00052054,31]
[312915517,1706459470376,-555.6522911,0.00052054,31]
[312915518,1706459470385,-500.0,0.00052054,31]
[312915519,1706459470394,-568.44100301,0.00052054,31]
[312915520,1706459470403,-589.64372435,0.00052054,31]
[312915521,1706459470412,-500.0,0.00052054,31]
[312915522,1706459470422,-500.0,0.00052054,31]
[312915523,1706459470432,-300.0,0.00052054,10]
[312915524,1706459470442,-500.0,0.00052054,31]
[312915525,1706459470451,-500.0,0.00052054,31]
[312915526,1706459470460,-557.75526986,0.00052054,31]
[312915527,1706459470470,-500.0,0.00052054,31]
[312915528,1706459470479,-1590.02,0.00052054,31]
[312915529,1706459470489,-591.59,0.00052054,31]
[312915530,1706459470498,-542.56511876,0.00052054,31]
[312915531,1706459470508,-623.33486772,0.00052054,31]
[312915532,1706459470517,-689.7,0.00052054,31]
[312915533,1706459470528,-500.0,0.00052054,31]
[312915534,1706459470537,-500.0,0.00052054,31]
[312915535,1706459470547,-603.10066591,0.00052054,31]
[312915536,1706459470557,-544.39,0.00052054,31]
[312915537,1706459470566,-546.08137498,0.00052054,31]
[312915538,1706459470575,-500.0,0.00052054,20]
[312915539,1706459470584,-584.75560413,0.00052054,31]
[312915540,1706459470593,-322.92075092,0.00052054,31]
[312915541,1706459470602,-500.0,0.00052054,31]
[312915542,1706459470611,-225.7735931,0.00052054,31]
[312915543,1706459470620,-154.67999167,0.00052054,31]
[312915544,1706459470629,-569.3418066,0.00052054,31]
[312915545,1706459470638,-500.0,0.00052054,31]
[312915546,1706459470648,-541.07363594,0.00052054,31]
[312915547,1706459470658,-500.0,0.00052054,31]
[312915548,1706459470668,-500.0,0.00052054,31]
[312915549,1706459470678,-500.0,0.00052054,31]
[312915550,1706459470688,-218.37034609,0.00052054,31]
[312915551,1706459470697,-500.0,0.00052054,31]
[312915552,1706459470706,-500.0,0.00052054,31]
[312915553,1706459470715,-632.87186737,0.00052054,31]
[312915554,1706459470724,-523.97158506,0.00052054,31]
[312915555,1706459470733,-471.5596191,0.00052054,31]
[312915556,1706459470743,-1879.81,0.00052054,2]
[312915557,1706459470752,-556.98027604,0.00052054,31]
[312915558,1706459470763,-500.0,0.00052054,31]
[312915559,1706459470774,-500.0,0.00052054,31]
[312915560,1706459470784,-500.0,0.00052054,31]
[312915561,1706459470794,-561.00973567,0.00052054,31]
[312915562,1706459470804,-500.0,0.00052054,31]
[312915563,1706459470813,-500.0,0.00052054,31]
[312915564,1706459470822,-500.0,0.00052054,5]
[312915565,1706459470832,-500.0,0.00052054,31]
[312915566,1706459470841,-192.80185543,0.00052054,31]
[312915567,1706459470850,-500.0,0.00052054,15]
[312915568,1706459470861,-202.60462867,0.00052054,31]
[312915569,1706459470870,-500.0,0.00052054,31]
[312915570,1706459470879,-500.0,0.00052054,31]
[312915571,1706459470888,-264.27732179,0.00052054,31]
[312915572,1706459470897,-1789.44,0.00052054,2]
[312915573,1706459470906,-500.0,0.00052054,31]
[312915574,1706459470916,-575.99153341,0.00052054,31]
[312915575,1706459470925,-481.86278347,0.00052054,31]
[312915576,1706459470934,-500.0,0.00052054,31]
[312915577,1706459470944,-1000.0,0.00052054,2]
[312915578,1706459470953,-500.0,0.00052054,31]
[312915579,1706459470963,-500.0,0.00052054,31]
[312915580,1706459470972,-542.32,0.00052054,31]
[312915581,1706459470981,-500.0,0.00052054,31]
[312915582,1706459470990,-500.0,0.00052054,31]
[312915583,1706459470998,-633.94,0.00052054,31]
[312915584,1706459471007,-500.0,0.00052054,31]
[312915585,1706459471015,-500.0,0.00052054,31]
[312915586,1706459471025,-500.0,0.00052054,31]
[312915587,1706459471034,-500.0,0.00052054,31]
[312915588,1706459471043,-500.0,0.00052054,31]
[312915589,1706459471054,-500.0,0.00052054,31]
[312915590,1706459471067,-500.0,0.00052054,31]
[312915591,1706459471081,-500.0,0.00052054,31]
[312915592,1706459471095,-573.73800602,0.00052054,31]
[312915593,1706459471108,-605.72472963,0.00052054,31]
[312915594,1706459471123,-500.0,0.00052054,31]
[312915595,1706459471137,-500.0,0.00052054,31]
[312915596,1706459471150,-500.0,0.00052054,31]
[312915597,1706459471164,-500.0,0.00052054,31]
[312915598,1706459471176,-500.0,0.00052054,2]
[312915599,1706459471188,-603.31714551,0.00052054,31]
[312915600,1706459471199,-500.0,0.00052054,31]
[312915601,1706459471212,-500.0,0.00052054,31]
[312915602,1706459471226,-500.0,0.00052054,31]
[312915603,1706459471242,-500.0,0.00052054,31]
[312915604,1706459471255,-500.0,0.00052054,31]
[312915605,1706459471269,-500.0,0.00052054,25]
[312915606,1706459471283,-500.0,0.00052054,31]
[312915607,1706459471297,-375.93074969,0.00052054,31]
[312915608,1706459471311,-500.0,0.00052054,31]
[312915609,1706459471328,-500.0,0.00052054,31]
[312915610,1706459471342,-500.0,0.00052054,31]
[312915611,1706459471356,-500.0,0.00052054,31]
[312915612,1706459471371,-498.65624321,0.00052054,2]
[312915613,1706459471382,-598.43512013,0.00052054,31]
[312915614,1706459471395,-500.0,0.00052054,2]
[312915615,1706459471407,-581.94461923,0.00052054,31]
[312915616,1706459471421,-500.0,0.00052054,31]
[312915617,1706459471434,-500.0,0.00052054,31]
[312915618,1706459471445,-500.0,0.00052054,31]
[312915619,1706459471456,-958.78,0.00052054,31]
[312915620,1706459471469,-202.15201818,0.00052054,31]
[312915621,1706459471481,-1113.75,0.00052054,2]
[312915622,1706459471492,-176.56977924,0.00052054,30]
[312915623,1706459471505,-500.0,0.00052054,31]
[312915624,1706459471516,-646.0782589,0.00052054,31]
[312915625,1706459471528,-500.0,0.00052054,31]
[312915626,1706459471540,-500.0,0.00052054,31]
[312915627,1706459471552,-500.0,0.00052054,31]
[312915628,1706459471565,-500.0,0.00052054,31]
[312915629,1706459471577,-500.0,0.00052054,31]
[312915630,1706459471588,-500.0,0.00052054,31]
[312915631,1706459471600,-500.0,0.00052054,2]
[312915632,1706459471612,-634.72055565,0.00052054,2]
[312915633,1706459471624,-500.0,0.00052054,31]
[312915634,1706459471636,-638.6332796,0.00052054,31]
[312915635,1706459471649,-500.0,0.00052054,31]
[312915636,1706459471661,-500.0,0.00052054,31]
[312915637,1706459471674,-511.7,0.00052054,31]
[312915638,1706459471685,-500.0,0.00052054,31]
[312915639,1706459471697,-498.76547,0.00052054,2]
[312915640,1706459471709,-500.0,0.00052054,7]
[312915641,1706459471721,-600.0,0.00052054,120]
[312915642,1706459471734,-1000.0,0.00052054,2]
[312915643,1706459471747,-500.0,0.00052054,31]
[312915644,1706459471760,-500.0,0.00052054,31]
[312915645,1706459471774,-500.0,0.00052054,31]
[312915646,1706459471786,-500.0,0.00052054,31]
[312915647,1706459471796,-500.0,0.00052054,31]
[312915648,1706459471807,-158.58097284,0.00052054,2]
[312915649,1706459471817,-500.0,0.00052054,31]
[312915650,1706459471828,-500.0,0.00052054,31]
[312915651,1706459471839,-500.0,0.00052054,31]
[312915652,1706459471850,-500.0,0.00052054,31]
[312915653,1706459471861,-500.0,0.00052054,31]
[312915654,1706459471872,-500.0,0.00052054,31]
[312915655,1706459471884,-548.88195333,0.00052054,31]
[312915656,1706459471895,-588.3858646,0.00052054,31]
[312915657,1706459471906,-500.0,0.00052054,31]
[312915658,1706459471917,-500.0,0.00052054,31]
[312915659,1706459471928,-566.24111247,0.00052054,31]
[312915660,1706459471939,-577.33243371,0.00052054,31]
[312915661,1706459471950,-500.0,0.00052054,31]
[312915662,1706459471962,-525.86631271,0.00052054,31]
[312915663,1706459471973,-198.70557552,0.00052054,2]
[312915664,1706459471984,-500.0,0.00052054,31]
[312915665,1706459471996,-589.52502281,0.00052054,31]
[312915666,1706459472007,-376.63889133,0.00052054,2]
[312915667,1706459472018,-500.0,0.00052054,10]
[312915668,1706459472029,-183.94046812,0.00052054,31]
[312915669,1706459472040,-500.0,0.00052054,31]
[312915670,1706459472052,-500.0,0.00052054,31]
[312915671,1706459472063,-568.55580231,0.00052054,31]
[312915672,1706459472075,-591.19513211,0.00052054,31]
[312915673,1706459472087,-500.0,0.00052054,31]
[312915674,1706459472098,-299.571129,0.00052054,2]
[312915675,1706459472109,-562.5,0.00052054,120]
[312915676,1706459472121,-198.71750358,0.00052054,2]
[312915677,1706459472132,-1256.04,0.00052054,31]
[312915679,1706459472143,-500.0,0.00052054,31]
[312915680,1706459472154,-190.0,0.00052054,2]
[312915681,1706459472166,-567.31643333,0.00052054,31]
[312915682,1706459472176,-500.0,0.00052054,31]
[312915683,1706459472187,-539.27048329,0.00052054,31]
[312915684,1706459472198,-156.98730999,0.00052054,2]
[312915685,1706459472209,-500.0,0.00052054,31]
[312915686,1706459472219,-573.93127963,0.00052054,31]
[312915687,1706459472231,-188.58304451,0.00052054,31]
[312915688,1706459472241,-500.0,0.00052054,31]
[312915689,1706459472252,-507.53850781,0.00052054,31]
[312915690,1706459472263,-516.56551393,0.00052054,31]
[312915691,1706459472274,-151.62318592,0.00052054,2]
[312915692,1706459472285,-186.73640667,0.00052054,2]
[312915693,1706459472295,-629.59,0.00052054,31]
[312915694,1706459472307,-570.85230053,0.00052054,31]
[312915695,1706459472318,-1208.17,0.00052054,2]
[312915696,1706459472329,-198.71551557,0.00052054,2]
[312915697,1706459472340,-329.3925334,0.00052054,31]
[312915698,1706459472350,-158.66988233,0.00052054,31]
[312915699,1706459472360,-500.0,0.00052054,2]
[312915700,1706459472371,-568.99401525,0.00052054,31]
[312915701,1706459472381,-583.48781953,0.00052054,31]
[312915702,1706459472392,-500.0,0.00052054,31]
[312915703,1706459472402,-164.76412095,0.00052054,2]
[312915704,1706459472413,-500.0,0.00052054,31]
[312915705,1706459472423,-218.56837429,0.00052054,31]
[312915706,1706459472434,-565.12974834,0.00052054,31]
[312915707,1706459472445,-203.5264881,0.00052054,31]
[312915708,1706459472455,-585.82,0.00052054,31]
[312915709,1706459472466,-314.88231191,0.00052054,2]
[312915710,1706459472476,-500.0,0.00052054,31]
[312915711,1706459472487,-500.0,0.00052054,31]
[312915712,1706459472498,-500.0,0.00052054,2]
[312915713,1706459472510,-565.28,0.00052054,31]
[312915714,1706459472521,-580.37628089,0.00052054,31]
[312915715,1706459472532,-500.0,0.00052054,31]
[312915716,1706459472542,-500.0,0.00052054,31]
[312915717,1706459472556,-500.0,0.00052054,2]
[312915718,1706459472566,-247.23862005,0.00052054,31]
[312915719,1706459472577,-500.0,0.00052054,31]
[312915720,1706459472588,-153.77984622,0.00052054,2]
[312915721,1706459472599,-500.0,0.00052054,31]
[312915722,1706459472609,-500.0,0.00052054,31]
[312915723,1706459472620,-500.0,0.00052054,2]
[312915724,1706459472638,-576.60352216,0.00052054,31]
[312915725,1706459472648,-388.92997528,0.00052054,31]
[312915726,1706459472658,-500.0,0.00052054,2]
[312915727,1706459472669,-644.6,0.00052054,31]
[312915728,1706459472680,-198.71750358,0.00052054,2]
[312915729,1706459472691,-500.0,0.00052054,31]
[312915730,1706459472702,-500.0,0.00052054,31]
[312915731,1706459472712,-500.0,0.00052054,31]
[312915732,1706459472722,-1294.55,0.00052054,7]
[312915733,1706459472734,-500.0,0.00052054,31]
[312915734,1706459472745,-508.55641626,0.00052054,31]
[312915735,1706459472758,-500.0,0.00052054,31]
[312915736,1706459472771,-206.11272475,0.00052054,31]
[312915737,1706459472783,-599.50748139,0.00052054,31]
[312915738,1706459472793,-302.25486882,0.00052054,2]
[312915739,1706459472804,-583.91162143,0.00052054,31]
[312915740,1706459472815,-153.61669092,0.00052054,2]
[312915741,1706459472826,-376.74442338,0.00052054,31]
[312915742,1706459472837,-500.0,0.00052054,31]
[312915743,1706459472848,-500.0,0.00052054,31]
[312915744,1706459472860,-1000.0,0.00052054,7]
[312915745,1706459472870,-1000.0,0.00052054,2]
[312915746,1706459472881,-196.06207316,0.00052054,31]
[312915747,1706459472891,-279.3869064,0.00052054,2]
[312915748,1706459472902,-500.0,0.00052054,31]
[312915749,1706459472913,-500.0,0.00052054,31]
[312915750,1706459472924,-168.92333201,0.00052054,31]
[312915751,1706459472935,-781.39,0.00052054,31]
[312915752,1706459472946,-500.0,0.00052054,31]
[312915753,1706459472957,-635.71372889,0.00052054,31]
[312915754,1706459472969,-500.0,0.00052054,31]
[312915755,1706459472982,-543.98321942,0.00052054,31]
[312915756,1706459472994,-500.0,0.00052054,31]
[312915757,1706459473007,-560.33,0.00052054,31]
[312915758,1706459473020,-500.0,0.00052054,31]
[312915759,1706459473033,-500.0,0.00052054,31]
[312915760,1706459473045,-500.0,0.00052054,31]
[312915761,1706459473058,-500.0,0.00052054,31]
[312915762,1706459473070,-500.0,0.00052054,31]
[312915763,1706459473083,-494.46322296,0.00052054,31]
[312915764,1706459473095,-500.0,0.00052054,31]
[312915765,1706459473341,-500.0,0.00052054,31]
[312915766,1706459473357,-750.02,0.00052054,31]
[312915767,1706459473367,-500.0,0.00052054,31]
[312915768,1706459473377,-564.96279832,0.00052054,2]
[312915769,1706459473386,-534.43772907,0.00052054,31]
[312915770,1706459473395,-394.3434337,0.00052054,31]
[312915771,1706459473404,-500.0,0.00052054,31]
[312915772,1706459473413,-334.39846191,0.00052054,31]
[312915773,1706459473422,-500.0,0.00052054,31]
[312915774,1706459473431,-211.9259797,0.00052054,31]
[312915775,1706459473440,-500.0,0.00052054,7]
[312915776,1706459473450,-583.76602293,0.00052054,31]
[312915777,1706459473459,-500.0,0.00052054,31]
[312915778,1706459473468,-500.0,0.00052054,31]
[312915779,1706459473477,-904.2,0.00052054,31]
[312915780,1706459473486,-500.0,0.00052054,31]
[312915781,1706459473495,-648.24550283,0.00052054,31]
[312915782,1706459473504,-500.0,0.00052054,31]
[312915783,1706459473513,-500.0,0.00052054,31]
[312915784,1706459473522,-500.0,0.00052054,31]
[312915785,1706459473531,-500.0,0.00052054,31]
[312915786,1706459473541,-562.21285083,0.00052054,31]
[312915787,1706459473550,-169.88655829,0.00052054,31]
[312915788,1706459473561,-500.0,0.00052054,31]